bitfinex-derivatives/quotes_SOLF0:USTF0_20250527
["timestamp","ask_amount","ask_price","bid_price","bid_amount"]
[1748325087503,5.80694207,173.41,173.37,0.03834048]
[1748325087704,2.54080558,173.4,173.37,0.03834048]
[1748325087904,5.80694207,173.41,173.37,0.03834048]
[1748325088107,2.54081865,173.4,173.37,0.03834048]
[1748325088306,5.80694207,173.41,173.37,0.03834048]
[1748325088606,2.54147562,173.4,173.37,0.03834048]
[1748325088811,0.04184207,173.41,173.37,0.03834048]
[1748325089111,2.54142578,173.4,173.37,0.03834048]
[1748325089310,0.04184207,173.41,173.37,5.80444048]
[1748325089506,2.54215774,173.4,173.37,5.80444048]
[1748325089706,0.04184207,173.41,173.37,5.80444048]
[1748325090009,2.54215167,173.4,173.37,0.03834048]
[1748325090308,0.04184207,173.41,173.37,0.03834048]
[1748325090505,2.5426508,173.4,173.37,0.03834048]
[1748325090711,5.7655,173.4,173.37,0.03834048]
[1748325091111,5.80684207,173.41,173.37,0.03834048]
[1748325091313,2.54264879,173.4,173.37,0.03834048]
[1748325091514,5.80684207,173.41,173.37,0.03834048]
[1748325091718,2.54308003,173.4,173.37,5.80454048]
[1748325091910,0.04184207,173.41,173.37,0.03834048]
[1748325092109,2.54300151,173.4,173.37,0.03834048]
[1748325092303,0.04184207,173.41,173.37,0.03834048]
[1748325092514,2.5430956,173.4,173.37,0.03834048]
[1748325092714,0.04184207,173.41,173.37,0.03834048]
[1748325092909,2.54334922,173.4,173.37,0.03834048]
[1748325093108,0.04184207,173.41,173.38,5.7656]
[1748325093309,2.54346909,173.4,173.38,5.7656]
[1748325093510,0.04184207,173.41,173.37,0.03834048]
[1748325093714,0.04184207,173.41,173.38,5.7658]
[1748325095115,2.54390894,173.4,173.38,5.7658]
[1748325095316,0.04184207,173.41,173.38,5.7658]
[1748325095510,2.5443211,173.4,173.38,5.7658]
[1748325095710,0.04184207,173.41,173.38,5.7658]
[1748325095913,2.5443211,173.4,173.37,5.80444048]
[1748325096114,5.80684207,173.41,173.37,5.80444048]
[1748325096314,2.54432269,173.4,173.37,0.03834048]
[1748325096517,0.04184207,173.41,173.37,0.03834048]
[1748325097013,0.04184207,173.41,173.38,5.7657]
[1748325097218,0.04184207,173.41,173.37,0.03834048]
[1748325097718,0.04184207,173.41,173.4,5.7652]
[1748325097918,2.58639339,173.41,173.4,5.7652]
[1748325098520,0.04184207,173.41,173.4,5.7652]
[1748325103323,4.207e-05,173.41,173.4,5.7652]
[1748325106324,5.7628,173.48,173.45,5.7634]
[1748325106526,5.7623,173.49,173.45,5.7634]
[1748325106732,2.53953589,173.48,173.43,225.06]
[1748325106922,5.7623,173.49,173.45,5.7633]
[1748325107121,2.53938882,173.48,173.45,5.7633]
[1748325107326,5.7623,173.49,173.45,5.7633]
[1748325107525,0.03622178,173.48,173.45,5.8063983]
[1748325108029,0.03622178,173.48,173.45,0.0430983]
[1748325108535,0.03622178,173.48,173.47,5.7629]
[1748325110234,0.03622178,173.48,173.45,0.0430983]
[1748325110625,0.03622178,173.48,173.47,5.7629]
[1748325110930,0.03622178,173.48,173.47,121.2629]
[1748325111234,7.11986861,173.58,173.47,126.46140816]
[1748325111533,7.11986861,173.58,173.44,503.8834]
[1748325111830,5.7607,173.54,173.49,5.762]
[1748325112022,5.7607,173.54,173.49,121.262]
[1748325112225,5.7602,173.56,173.5,5.80566705]
[1748325114531,5.7602,173.56,173.51,5.7615]
[1748325116132,5.7596,173.57,173.52,5.7612]
[1748325116331,5.7596,173.57,173.53,0.04194606]
[1748325117834,119.4346,173.59,173.53,5.80264606]
[1748325118027,2.52779816,173.58,173.53,5.80264606]
[1748325118227,119.4346,173.59,173.53,5.80264606]
[1748325118429,2.53000754,173.58,173.53,5.80264606]
[1748325118628,119.4346,173.59,173.53,5.80264606]
[1748325118830,2.53001096,173.58,173.53,0.04194606]
[1748325119131,119.4346,173.59,173.53,0.04194606]
[1748325119424,2.52968737,173.58,173.53,0.04194606]
[1748325119626,119.4346,173.59,173.53,0.04194606]
[1748325119929,2.52968464,173.58,173.53,0.04194606]
[1748325120129,119.4346,173.59,173.53,0.04194606]
[1748325120332,5.7596,173.57,173.53,0.04194606]
[1748325120733,115.46,173.65,173.54,115.46]
[1748325120939,2.52949608,173.63,173.57,0.03757229]
[1748325121131,2.52953406,173.62,173.57,0.03757229]
[1748325121331,2.52953406,173.61,173.57,0.03757229]
[1748325121626,5.7587,173.6,173.57,0.03757229]
[1748325122437,5.759,173.59,173.57,0.03757229]
[1748325123841,5.7592,173.58,173.57,0.03757229]
[1748325124435,119.3739,173.65,173.57,0.03757229]
[1748325124636,2.52676108,173.64,173.57,0.03757229]
[1748325124938,2.52676108,173.63,173.57,0.03757229]
[1748325125142,5.7592,173.58,173.57,0.03757229]
[1748325127543,8.28619273,173.58,173.57,0.03757229]
[1748325127739,8.28631787,173.58,173.57,0.03757229]
[1748325129351,8.28647762,173.58,173.57,0.03757229]
[1748325130341,5.7592,173.58,173.57,0.03757229]
[1748325132645,8.2876151,173.58,173.57,0.03757229]
[1748325132853,5.7592,173.58,173.57,0.03757229]
[1748325135552,9.07926861,173.66,173.57,0.03757229]
[1748325135747,119.90238724,173.65,173.57,0.03757229]
[1748325136052,2.52948724,173.64,173.57,0.03757229]
[1748325136257,2.52948724,173.63,173.57,0.03757229]
[1748325136456,8.28758724,173.62,173.57,5.79707229]
[1748325136752,5.7581,173.62,173.57,5.79707229]
[1748325137150,5.7576,173.63,173.57,0.03757229]
[1748325137353,1.9329,173.65,173.57,0.03757229]
[1748325137545,1.9329,173.65,173.58,115.22]
[1748325137751,7.6898,173.65,173.59,5.7589]
[1748325137952,7.6898,173.65,173.59,115.1789]
[1748325139051,1.9329,173.65,173.6,5.7585]
[1748325139250,5.7566,173.66,173.61,0.03952167]
[1748325139451,115.22,173.68,173.61,0.03952167]
[1748325139652,2.52163026,173.67,173.61,0.03952167]
[1748325139856,2.52163026,173.66,173.61,0.03952167]
[1748325140056,5.7564,173.67,173.61,5.79752167]
[1748325140254,115.22,173.68,173.61,0.03952167]
[1748325140450,5.7558,173.69,173.63,5.7576]
[1748325140656,2.52125193,173.68,173.64,0.03842874]
[1748325140858,5.7558,173.69,173.64,0.03842874]
[1748325141061,2.52139441,173.68,173.64,0.03842874]
[1748325141254,2.52235367,173.67,173.64,0.03842874]
[1748325141556,119.0905,173.71,173.64,0.03842874]
[1748325141751,5.7562,173.68,173.64,0.03842874]
[1748325142357,5.7556,173.7,173.64,5.79552874]
[1748325142554,2.52146462,173.69,173.64,5.79552874]
[1748325142755,5.7556,173.7,173.64,5.79552874]
[1748325142955,2.52139524,173.69,173.64,5.79552874]
[1748325143258,117.1005,173.71,173.64,0.03842874]
[1748325143555,2.52226356,173.7,173.64,0.03842874]
[1748325143757,8.27816356,173.69,173.64,0.03842874]
[1748325143958,117.1005,173.71,173.64,0.03842874]
[1748325144163,2.52128296,173.7,173.64,0.03842874]
[1748325144367,5.7562,173.68,173.64,0.03842874]
[1748325147670,1.9005,173.71,173.64,0.03842874]
[1748325148257,4.67008797,173.7,173.64,0.03842874]
[1748325148462,4.67008797,173.7,173.65,0.03878207]
[1748325148858,10.42568797,173.7,173.65,5.79538207]
[1748325149068,5.7556,173.7,173.65,5.79538207]
[1748325149259,3.9174,173.75,173.66,109.38]
[1748325149461,2.52075636,173.74,173.69,0.04277641]
[1748325149660,2.52075636,173.73,173.69,0.04277641]
[1748325149860,2.52075636,173.72,173.69,0.04277641]
[1748325150162,3.9174,173.75,173.69,0.04277641]
[1748325150364,4.67014172,173.73,173.69,0.04277641]
[1748325150559,2.52127687,173.72,173.69,0.04277641]
[1748325150766,4.67014172,173.73,173.69,0.04277641]
[1748325150967,2.52053193,173.72,173.69,0.04277641]
[1748325151164,2.52120985,173.71,173.69,0.04277641]
[1748325151369,5.7553,173.7,173.69,0.04277641]
[1748325152970,8.27625333,173.7,173.69,0.04277641]
[1748325154866,8.27625333,173.7,173.69,7.641e-05]
[1748325155972,12.94900219,173.7,173.69,7.641e-05]
[1748325156170,12.94900219,173.7,173.62,109.36]
[1748325156171,5.7578,173.63,173.59,121.0075]
[1748325156469,115.16,173.68,173.59,117.0748]
[1748325156677,2.52245376,173.67,173.59,117.0748]
[1748325156971,2.52245376,173.66,173.59,117.0748]
[1748325157173,0.04097449,173.64,173.61,0.04181358]
[1748325157573,5.7578,173.63,173.61,0.04181358]
[1748325158074,5.79817449,173.64,173.61,0.04181358]
[1748325158474,0.04097449,173.64,173.61,0.04181358]
[1748325160275,5.7576,173.63,173.61,0.04181358]
[1748325161675,5.79827449,173.64,173.61,0.04181358]
[1748325162977,0.04097449,173.64,173.61,0.04181358]
[1748325164771,0.04097449,173.64,173.62,5.7577]
[1748325165980,0.04097449,173.64,173.63,5.7576]
[1748325168476,0.04097449,173.64,173.63,124.0776]
[1748325173876,122.1279,173.74,173.68,5.7559]
[1748325174079,2.52598617,173.73,173.68,5.7559]
[1748325174278,8.28088617,173.72,173.69,5.7555]
[1748325174482,5.7549,173.72,173.69,5.7555]
[1748325174880,5.7549,173.72,173.69,5.7984723]
[1748325176084,5.7543,173.73,173.69,5.7984723]
[1748325176285,2.52722892,173.72,173.69,5.7984723]
[1748325176474,9.11516861,173.78,173.69,0.0429723]
[1748325176781,7.21305609,173.77,173.69,0.0429723]
[1748325176976,2.52801325,173.76,173.69,0.0429723]
[1748325177174,2.52801325,173.75,173.69,0.0429723]
[1748325177375,2.52801325,173.74,173.69,0.0429723]
[1748325177585,4.68504284,173.77,173.69,0.0429723]
[1748325177884,7.21348716,173.76,173.69,0.0429723]
[1748325178084,4.68504284,173.76,173.69,0.0429723]
[1748325178485,4.68504284,173.76,173.72,5.7545]
[1748325179687,5.7532,173.77,173.72,5.7545]
[1748325179887,2.52857506,173.76,173.73,0.03937676]
[1748325180087,5.7532,173.77,173.74,109.34]
[1748325180588,2.52977175,173.76,173.74,109.34]
[1748325180787,1.8822,173.82,173.74,109.34]
[1748325180989,2.52977313,173.81,173.74,109.34]
[1748325181189,7.21821113,173.8,173.74,109.34]
[1748325181389,2.52977313,173.79,173.74,109.34]
[1748325181588,2.52977313,173.78,173.74,109.34]
[1748325181791,5.7533,173.76,173.74,109.34]
[1748325182183,4.688438,173.8,173.74,109.34]
[1748325182489,2.52881977,173.79,173.74,109.34]
[1748325182687,2.52881977,173.78,173.74,109.34]
[1748325182887,4.688438,173.8,173.74,109.34]
[1748325183195,7.21747204,173.79,173.74,115.0937]
[1748325183391,2.52903404,173.78,173.74,109.34]
[1748325183590,4.688438,173.79,173.74,109.34]
[1748325183794,2.52733646,173.78,173.74,109.34]
[1748325183991,4.688438,173.79,173.74,109.34]
[1748325184393,5.752,173.8,173.75,5.7535]
[1748325184596,2.52635394,173.79,173.75,5.7535]
[1748325184896,5.752,173.8,173.75,124.0335]
[1748325186297,5.7523,173.79,173.75,118.28]
[1748325186497,5.7523,173.79,173.75,118.31788632]
[1748325186694,1.8822,173.82,173.75,118.31788632]
[1748325186894,2.52347204,173.81,173.75,118.31788632]
[1748325187193,1.8822,173.82,173.75,118.31788632]
[1748325187492,2.52244215,173.81,173.75,118.31788632]
[1748325187693,1.8822,173.82,173.75,118.31788632]
[1748325187890,2.52234864,173.81,173.75,118.31788632]
[1748325188093,1.8822,173.82,173.75,118.31788632]
[1748325189700,5.752,173.8,173.75,118.31788632]
[1748325189899,1.8822,173.82,173.75,118.31788632]
[1748325190197,5.7523,173.79,173.75,118.31788632]
[1748325191202,1.9102,173.84,173.75,118.31788632]
[1748325191501,2.51889728,173.83,173.75,118.31788632]
[1748325191702,118.26,173.85,173.75,118.31788632]
[1748325191902,5.7516,173.81,173.76,5.753]
[1748325193205,4.66911417,173.84,173.75,118.31788632]
[1748325193206,4.66911417,173.84,173.75,124.07138632]
[1748325193610,118.26,173.85,173.75,124.07138632]
[1748325193908,2.51708133,173.84,173.75,118.31788632]
[1748325194207,118.26,173.85,173.75,118.31788632]
[1748325194407,4.4381147,173.84,173.75,118.31788632]
[1748325194598,1.9215,173.84,173.75,118.31788632]
[1748325194904,2.0635,173.83,173.75,118.31788632]
[1748325195702,2.0635,173.83,173.75,227.61788632]
[1748325196099,5.7528,173.78,173.75,227.61788632]
[1748325196911,2.0635,173.83,173.75,227.61788632]
[1748325197414,2.0635,173.83,173.75,233.37148632]
[1748325197916,5.7522,173.8,173.75,233.37148632]
[1748325198517,5.753,173.77,173.75,0.03788632]
[1748325198718,7.26490816,173.83,173.75,0.03788632]
[1748325198916,2.51486786,173.82,173.75,0.03788632]
[1748325199215,7.26490816,173.83,173.75,0.03788632]
[1748325199515,5.7533,173.76,173.75,0.03788632]
[1748325203319,2.0635,173.83,173.75,0.03788632]
[1748325203516,2.51710294,173.82,173.75,0.03788632]
[1748325203819,2.51710294,173.81,173.75,0.03788632]
[1748325204116,117.94,173.82,173.75,0.03788632]
[1748325204319,5.7528,173.78,173.75,0.03788632]
[1748325204913,5.753,173.77,173.75,0.03788632]
[1748325205118,117.94,173.82,173.75,0.03788632]
[1748325205418,2.51806544,173.81,173.75,0.03788632]
[1748325205616,2.51806544,173.8,173.75,0.03788632]
[1748325205818,117.94,173.82,173.75,0.03788632]
[1748325206016,7.18903105,173.81,173.75,0.03788632]
[1748325206214,2.51891859,173.8,173.75,0.03788632]
[1748325206418,5.7532,173.77,173.75,0.03788632]
[1748325206711,4.67011246,173.81,173.75,0.03788632]
[1748325206919,5.7532,173.77,173.75,0.03788632]
[1748325207109,4.67011246,173.81,173.75,0.03788632]
[1748325207312,122.61011246,173.81,173.75,0.03788632]
[1748325207515,5.7521,173.8,173.75,0.03788632]
[1748325207714,117.94,173.81,173.75,0.03788632]
[1748325208419,2.0635,173.83,173.75,0.03788632]
[1748325208619,2.52208349,173.82,173.75,0.03788632]
[1748325208821,2.0635,173.83,173.75,0.03788632]
[1748325209118,8.27335966,173.82,173.77,5.7529]
[1748325209417,2.0635,173.83,173.75,0.03788632]
[1748325209621,2.52266647,173.82,173.75,0.03788632]
[1748325209819,2.0635,173.83,173.75,0.03788632]
[1748325210014,9.20656861,173.89,173.75,0.03788632]
[1748325210322,124.45189025,173.88,173.8,0.03806545]
[1748325210520,7.7245127,173.87,173.8,0.03806545]
[1748325210721,2.52310454,173.86,173.8,0.03806545]
[1748325211017,2.52310454,173.85,173.8,0.03806545]
[1748325211218,5.7516,173.81,173.8,0.03806545]
[1748325211415,117.94,173.84,173.8,0.03806545]
[1748325211612,2.52407721,173.83,173.8,0.03806545]
[1748325211815,2.52394859,173.82,173.8,0.03806545]
[1748325212017,5.7512,173.83,173.8,0.03806545]
[1748325212416,2.5246505,173.82,173.8,0.03806545]
[1748325212617,117.94,173.84,173.8,0.03806545]
[1748325212815,2.52465158,173.83,173.8,0.03806545]
[1748325213016,2.52465158,173.82,173.8,0.03806545]
[1748325213223,119.915,173.88,173.8,0.03806545]
[1748325213419,2.52414026,173.87,173.8,0.03806545]
[1748325213618,5.7507,173.84,173.8,0.03806545]
[1748325213818,119.915,173.88,173.8,0.03806545]
[1748325214021,2.52493361,173.87,173.8,0.03806545]
[1748325214224,5.7506,173.85,173.8,0.03806545]
[1748325214416,2.52493361,173.84,173.8,0.03806545]
[1748325214617,5.7506,173.85,173.8,0.03806545]
[1748325214914,2.5252706,173.84,173.8,0.03806545]
[1748325215113,5.7506,173.85,173.8,0.03806545]
[1748325215317,2.5250139,173.84,173.8,0.03806545]
[1748325215622,5.7507,173.84,173.8,0.03806545]
[1748325216621,1.995,173.88,173.8,0.03806545]
[1748325216819,2.52642409,173.87,173.8,0.03806545]
[1748325217023,2.52642409,173.86,173.8,0.03806545]
[1748325217223,2.52642409,173.85,173.8,0.03806545]
[1748325217418,2.52711575,173.84,173.8,0.03806545]
[1748325217617,119.915,173.88,173.8,0.03806545]
[1748325217821,2.52711234,173.87,173.8,0.03806545]
[1748325218022,2.52711234,173.86,173.8,0.03806545]
[1748325218218,2.52711234,173.85,173.81,0.03854179]
[1748325218418,2.52785232,173.84,173.81,0.03854179]
[1748325218625,5.7502,173.86,173.81,0.03854179]
[1748325218820,2.52785223,173.85,173.81,0.03854179]
[1748325219022,5.7502,173.86,173.81,0.03854179]
[1748325219324,2.52782215,173.85,173.81,5.79004179]
[1748325219524,2.52782215,173.84,173.81,5.79004179]
[1748325219725,5.7502,173.86,173.81,5.79004179]
[1748325219924,2.5284319,173.85,173.81,5.79004179]
[1748325220125,2.5284319,173.84,173.81,5.79004179]
[1748325220331,5.7502,173.86,173.81,5.79004179]
[1748325220624,2.52911884,173.85,173.82,5.7511]
[1748325220928,117.92,173.88,173.82,5.7511]
[1748325221128,8.27863582,173.87,173.82,5.7511]
[1748325221425,2.52893582,173.86,173.82,5.7511]
[1748325221627,2.52893582,173.85,173.83,5.7509]
[1748325221830,5.7497,173.87,173.83,5.7509]
[1748325222126,2.52961246,173.86,173.83,5.7509]
[1748325222327,2.52961246,173.85,173.83,5.7509]
[1748325222620,5.7497,173.87,173.83,5.7509]
[1748325222826,2.53000452,173.86,173.83,5.7509]
[1748325223025,2.53000452,173.85,173.83,5.7509]
[1748325223223,5.7497,173.87,173.83,5.7509]
[1748325223425,2.5296794,173.86,173.82,5.7512]
[1748325223624,2.5296794,173.85,173.82,5.7512]
[1748325223827,5.7497,173.87,173.82,5.7512]
[1748325224129,2.52990214,173.86,173.82,5.7512]
[1748325224425,2.52978139,173.85,173.83,5.7509]
[1748325224627,10.64901734,173.94,173.84,117.9]
[1748325224628,128.54901734,173.94,173.84,117.9]
[1748325224826,12.96874306,173.91,173.86,5.79045248]
[1748325225026,2.52932945,173.9,173.86,5.79045248]
[1748325225228,2.52932945,173.89,173.86,5.79045248]
[1748325225430,10.43941361,173.91,173.86,5.79045248]
[1748325225632,2.52822329,173.9,173.86,5.79045248]
[1748325225928,2.52822329,173.89,173.86,5.79045248]
[1748325226129,10.43941361,173.91,173.86,5.79045248]
[1748325226427,3.934,173.98,173.86,0.04055248]
[1748325226428,125.11924028,173.9,173.86,0.04055248]
[1748325226628,2.52822667,173.89,173.86,0.04055248]
[1748325226830,2.52822667,173.88,173.86,0.04055248]
[1748325227030,2.52822667,173.87,173.86,0.04055248]
[1748325227331,12.96884028,173.87,173.86,0.04055248]
[1748325228627,12.96884028,173.87,173.86,5.248e-05]
[1748325229327,5.7517,173.81,173.78,2.0218]
[1748325229832,117.96,173.86,173.78,2.0218]
[1748325230032,2.52829255,173.85,173.78,2.0218]
[1748325230333,0.04006206,173.83,173.8,0.0385672]
[1748325231226,5.7516,173.81,173.8,0.0385672]
[1748325235439,0.04006206,173.83,173.8,0.0385672]
[1748325235933,5.79116206,173.83,173.8,0.0385672]
[1748325236238,0.04006206,173.83,173.8,0.0385672]
[1748325239243,5.79106206,173.83,173.8,0.0385672]
[1748325240541,0.04006206,173.83,173.8,0.0385672]
[1748325242241,0.04006206,173.83,173.8,5.7903672]
[1748325242843,0.04006206,173.83,173.8,0.0385672]
[1748325244639,2.52863062,173.82,173.8,0.0385672]
[1748325244844,2.52863062,173.81,173.8,0.0385672]
[1748325245247,8.28023062,173.81,173.8,0.0385672]
[1748325246848,12.97894886,173.81,173.8,0.0385672]
[1748325248247,12.9810092,173.81,173.8,0.0385672]
[1748325249749,10.45031824,173.81,173.8,0.0385672]
[1748325249952,12.98232055,173.81,173.8,0.0385672]
[1748325251252,7.23072055,173.81,173.8,0.0385672]
[1748325251658,0.04006206,173.83,173.8,0.0385672]
[1748325252149,0.04006206,173.83,173.8,1.9201672]
[1748325252655,0.04006206,173.83,173.82,5.7513]
[1748325269261,7.11986861,173.92,173.8,1.9201672]
[1748325269559,2.53226866,173.91,173.81,231.24140816]
[1748325269761,2.53226866,173.9,173.81,233.17760816]
[1748325269961,2.53226866,173.89,173.81,233.17760816]
[1748325270161,5.7485,173.91,173.81,233.17760816]
[1748325270363,2.53203308,173.9,173.84,0.03900608]
[1748325270558,2.53203308,173.89,173.84,0.03900608]
[1748325270863,5.7485,173.91,173.84,0.03900608]
[1748325271068,2.53129913,173.9,173.84,0.03900608]
[1748325271266,2.53129913,173.89,173.84,0.03900608]
[1748325271461,116.8,173.94,173.84,0.03900608]
[1748325271661,2.53119042,173.93,173.84,0.03900608]
[1748325271858,5.7484,173.91,173.84,0.03900608]
[1748325272064,2.53119042,173.9,173.84,0.03900608]
[1748325272368,2.53117558,173.89,173.84,0.03900608]
[1748325272563,5.7483,173.92,173.84,0.03900608]
[1748325272765,2.53057589,173.91,173.84,0.03900608]
[1748325272966,2.53057589,173.9,173.84,0.03900608]
[1748325273261,2.53057589,173.89,173.84,0.03900608]
[1748325273465,5.7484,173.91,173.87,5.7494]
[1748325273668,2.52997136,173.9,173.87,5.7494]
[1748325273968,4.7000561,173.91,173.87,114.9894]
[1748325274273,2.52997244,173.9,173.84,0.03900608]
[1748325274463,2.52997244,173.89,173.84,109.27900608]
[1748325274768,2.5279837,173.88,173.84,109.27900608]
[1748325274957,116.8,173.9,173.84,109.28241382]
[1748325275158,5.7496,173.88,173.84,109.28241382]
[1748325275363,2.52798093,173.87,173.84,109.28241382]
[1748325275664,116.8,173.9,173.84,109.28241382]
[1748325275867,5.7493,173.88,173.84,109.28241382]
[1748325276066,2.52787389,173.87,173.84,109.28241382]
[1748325276263,5.7493,173.88,173.84,109.28241382]
[1748325276468,116.8,173.9,173.86,5.7497]
[1748325276664,2.52749605,173.89,173.86,5.7497]
[1748325276866,116.8,173.9,173.86,5.7497]
[1748325277067,2.52749674,173.89,173.87,5.7496]
[1748325277261,116.8,173.9,173.87,5.7496]
[1748325277464,2.52736934,173.89,173.87,5.7496]
[1748325277664,116.8,173.9,173.87,5.7496]
[1748325277866,2.52736593,173.89,173.84,109.28241382]
[1748325278063,116.8,173.9,173.84,109.28241382]
[1748325278265,2.52736593,173.89,173.84,109.28241382]
[1748325278462,122.5487,173.9,173.85,5.7501]
[1748325278666,2.52726188,173.89,173.84,109.28241382]
[1748325278862,116.8,173.9,173.84,109.28241382]
[1748325279062,2.5272489,173.89,173.84,109.28241382]
[1748325279266,116.78,173.93,173.85,0.0435772]
[1748325279470,2.52719405,173.92,173.85,116.8235772]
[1748325279671,2.52719405,173.91,173.85,116.8235772]
[1748325279872,122.5277,173.93,173.88,5.7491]
[1748325280170,7.22495551,173.92,173.89,0.04247016]
[1748325280366,2.526789,173.91,173.89,0.04247016]
[1748325280566,4.69816651,173.92,173.89,0.04247016]
[1748325280870,2.52647008,173.91,173.89,0.04247016]
[1748325281070,4.69816651,173.92,173.89,0.04247016]
[1748325281271,2.52645711,173.91,173.89,0.04247016]
[1748325281471,4.69816651,173.92,173.89,0.04247016]
[1748325281673,8.27444978,173.91,173.89,0.04247016]
[1748325281872,5.7484,173.91,173.89,0.04247016]
[1748325282374,116.78,173.93,173.89,0.04247016]
[1748325282672,2.52569266,173.92,173.89,0.04247016]
[1748325282874,2.52569266,173.91,173.89,0.04247016]
[1748325283070,5.7486,173.9,173.89,0.04247016]
[1748325283569,8.27399888,173.9,173.89,0.04247016]
[1748325283970,5.7499,173.87,173.84,109.22]
[1748325284876,0.03753477,173.87,173.84,109.26311714]
[1748325285475,0.03753477,173.87,173.85,5.7503]
[1748325286071,0.03753477,173.87,173.84,109.26311714]
[1748325286377,5.20140816,173.96,173.84,109.26311714]
[1748325286378,116.78,174.02,173.86,116.78]
[1748325286575,2.52433475,173.96,173.87,2.0043]
[1748325286769,2.52433475,173.95,173.92,5.7479]
[1748325286968,12.86646861,173.97,173.93,109.22]
[1748325287164,8.27107553,173.96,173.93,109.25801265]
[1748325287469,4.6942093,173.96,173.93,0.03801265]
[1748325287671,4.6942093,173.96,173.93,109.25801265]
[1748325287871,5.747,173.95,173.93,109.25801265]
[1748325289880,5.7473,173.94,173.93,109.25801265]
[1748325291678,5.7473,173.94,173.93,0.03801265]
[1748325292575,5.7492,173.89,173.86,115.94]
[1748325292779,4.0996,173.93,173.85,109.2]
[1748325292977,2.52237713,173.92,173.83,115.94]
[1748325293174,5.7502,173.86,173.84,109.2]
[1748325293377,4.0996,173.93,173.83,115.94]
[1748325293574,4.0996,173.93,173.86,0.03705698]
[1748325293575,0.03685388,173.9,173.86,0.03705698]
[1748325293779,5.7496,173.87,173.86,0.03705698]
[1748325295281,5.7494,173.88,173.86,0.03705698]
[1748325297185,5.7496,173.87,173.86,0.03705698]
[1748325297385,0.03685388,173.9,173.86,0.03705698]
[1748325297588,2.5265613,173.89,173.86,0.03705698]
[1748325297780,0.03685388,173.9,173.86,0.03705698]
[1748325297977,2.52653743,173.89,173.86,0.03705698]
[1748325298181,0.03685388,173.9,173.86,0.03705698]
[1748325298382,5.7492,173.89,173.86,0.03705698]
[1748325298882,5.78555388,173.9,173.86,0.03705698]
[1748325299178,0.03685388,173.9,173.86,0.03705698]
[1748325299382,5.7492,173.89,173.86,0.03705698]
[1748325300988,0.03685388,173.9,173.86,0.03705698]
[1748325301393,0.03685388,173.9,173.87,109.2]
[1748325301890,5.7492,173.89,173.87,109.2]
[1748325303888,0.03685388,173.9,173.87,109.2]
[1748325304083,2.5271655,173.89,173.87,109.2]
[1748325304281,0.03685388,173.9,173.87,114.9495]
[1748325304684,2.52752473,173.89,173.87,114.9495]
[1748325304885,0.03685388,173.9,173.87,114.9495]
[1748325305595,0.03685388,173.9,173.87,109.2]
[1748325306093,0.03685388,173.9,173.87,114.9496]
[1748325306286,0.03685388,173.9,173.87,109.2]
[1748325306694,0.03685388,173.9,173.88,5.7493]
[1748325306991,0.03685388,173.9,173.87,225.14]
[1748325307185,0.03685388,173.9,173.87,5.7496]
[1748325307384,0.03685388,173.9,173.88,109.22]
[1748325307784,0.03685388,173.9,173.88,114.9692]
[1748325308193,0.03685388,173.9,173.88,109.22]
[1748325308592,0.03685388,173.9,173.89,5.749]
[1748325309091,0.03685388,173.9,173.88,109.22]
[1748325311697,0.03685388,173.9,173.86,121.72695698]
[1748325311698,0.03685388,173.9,173.87,5.7496]
[1748325311997,0.03685388,173.9,173.88,109.2]
[1748325313600,0.03685388,173.9,173.89,5.749]
[1748325315197,0.03685388,173.9,173.87,2.0831]
[1748325315393,0.03685388,173.9,173.88,109.2]
[1748325315600,0.03685388,173.9,173.89,109.2]
[1748325318203,2.56833706,173.9,173.89,109.2]
[1748325318901,0.03685388,173.9,173.89,109.2]
[1748325319402,5.78555388,173.9,173.86,5.78695698]
[1748325319705,5.78555388,173.9,173.87,109.2]
[1748325320703,5.749,173.89,173.86,0.03705698]
[1748325320903,0.03685388,173.9,173.86,0.03705698]
[1748325321100,2.53199039,173.89,173.87,109.2]
[1748325321297,0.03685388,173.9,173.87,109.2]
[1748325321603,2.53220618,173.89,173.86,109.23705698]
[1748325321805,2.53220618,173.88,173.86,109.23705698]
[1748325321999,0.03685388,173.9,173.86,109.23705698]
[1748325322201,2.53217416,173.89,173.86,109.23705698]
[1748325322501,5.7496,173.87,173.86,109.23705698]
[1748325322700,5.7496,173.87,173.86,0.03705698]
[1748325322902,8.28181461,173.87,173.86,0.03705698]
[1748325326005,12.99291979,173.87,173.86,5.698e-05]